bitfinex/quotes_ETHUSD_20240820
["timestamp","ask_amount","ask_price","bid_price","bid_amount"]
[1724156777505,2.3703,2655.5,2654.9,6.17162]
[1724156777662,2.3703,2655.5,2655.1,3.76632]
[1724156778111,3.76569,2655.6,2655.1,3.76632]
[1724156778730,0.55,2655.5,2655.1,3.76632]
[1724156780425,6.1575,2655.8,2655.2,3.76606]
[1724156780586,2.3381,2655.3,2654.8,3.76666]
[1724156781313,2.3381,2655.3,2654.7,3.76684]
[1724156781506,6.10425,2655.3,2654.7,3.76681]
[1724156781812,0.55,2655.2,2654.8,3.76676]
[1724156782118,0.55,2655.2,2654.8,3.76675]
[1724156782322,0.55,2655.2,2654.8,3.76665]
[1724156782532,0.55,2655.2,2654.9,3.76661]
[1724156783230,0.55,2655.2,2655.0,3.76647]
[1724156783437,4.31592,2655.4,2654.8,3.76663]
[1724156783728,4.31592,2655.4,2654.8,7.53331]
[1724156784036,0.55,2655.4,2654.9,3.7666]
[1724156784218,2.3461,2655.3,2654.2,3.06498964]
[1724156784399,2.3461,2654.9,2654.3,3.76733]
[1724156784601,2.3461,2654.9,2654.4,3.76725]
[1724156784917,0.55,2654.8,2654.4,3.76725]
[1724156785722,0.55,2654.8,2654.3,3.76733]
[1724156785723,4.31683,2654.8,2654.3,3.76733]
[1724156785932,5.359795,2654.8,2654.3,3.76733]
[1724156786541,3.76692,2654.7,2654.1,7.53536]
[1724156786748,0.55,2654.6,2654.1,7.53536]
[1724156786884,0.55,2654.6,2654.2,3.7676]
[1724156788193,0.55,2654.7,2654.2,3.7676]
[1724156789940,4.3169,2654.7,2654.2,3.7676]
[1724156790231,4.3169,2654.7,2654.1,7.5353]
[1724156790587,3.76718,2654.5,2654.0,3.76787]
[1724156790791,5.4641675,2654.7,2654.1,3.76774]
[1724156791222,9.2311475,2654.7,2654.1,3.76774]
[1724156791920,9.2311675,2654.7,2654.1,3.76768]
[1724156792121,5.4641675,2654.7,2654.2,3.76761]
[1724156793488,9.2311475,2654.7,2654.2,3.76761]
[1724156794593,5.4641675,2654.7,2654.0,3.76782]
[1724156794837,3.76719,2654.5,2654.0,3.76782]
[1724156795137,0.55,2654.4,2654.0,3.76782]
[1724156796902,0.55,2654.4,2653.9,7.31]
[1724156797118,1.1472675,2654.7,2654.1,3.76775]
[1724156797119,3.76697,2654.7,2654.1,3.76775]
[1724156797292,0.55,2654.6,2654.1,3.76775]
[1724156797652,0.55,2654.6,2654.0,3.76781]
[1724156797653,4.31706,2654.6,2654.0,3.76781]
[1724156797865,4.31706,2654.6,2654.0,3.7678]
[1724156798223,3.76719,2654.5,2654.0,3.7678]
[1724156798405,2.8139,2654.4,2654.0,3.7678]
[1724156799033,6.58124,2654.4,2653.8,7.53619]
[1724156799303,2.8139,2654.4,2653.9,3.76802]
[1724156800467,2.8139,2654.4,2653.8,3.76809]
[1724156800603,3.76747,2654.3,2653.8,3.76809]
[1724156800804,0.55,2654.2,2653.8,7.53619]
[1724156801147,0.55,2654.2,2653.8,3.76809]
[1724156801401,0.55,2654.2,2653.8,7.53618]
[1724156801566,0.55,2654.3,2653.8,7.53618]
[1724156802109,0.55,2654.3,2653.8,7.53617]
[1724156802731,0.55,2654.3,2653.9,3.76802]
[1724156802933,4.31747,2654.3,2653.8,3.76808]
[1724156803540,0.55,2654.3,2653.9,3.76802]
[1724156803896,0.55,2654.3,2653.8,3.76808]
[1724156803897,0.55,2654.3,2654.0,3.76787]
[1724156804082,2.4035,2655.0,2654.6,3.76693]
[1724156804651,6.16973,2655.2,2654.6,3.76693]
[1724156806272,2.4271,2655.5,2654.8,2.2943]
[1724156806478,2.4271,2655.5,2655.0,3.76637]
[1724156806675,2.4271,2655.5,2654.8,6.06099]
[1724156806964,6.19287,2655.5,2654.8,6.06099]
[1724156807257,6.19287,2655.5,2654.8,3.76669]
[1724156807837,0.55,2655.4,2654.8,3.76669]
[1724156809044,4.31595,2655.4,2654.7,3.7669]
[1724156809242,4.31595,2655.4,2654.5,11.07707]
[1724156809484,3.76622,2655.2,2654.5,11.07707]
[1724156809651,0.55,2655.1,2654.5,13.104243]
[1724156810365,0.55,2655.1,2654.6,3.767]
[1724156812599,0.55,2655.1,2654.7,3.76685]
[1724156812747,0.55,2655.3,2654.7,3.76685]
[1724156812948,1.224305,2655.3,2654.7,3.76685]
[1724156813165,0.55,2655.3,2654.7,3.76685]
[1724156813678,4.31607,2655.3,2654.7,3.76685]
[1724156813870,2.4939,2655.1,2654.6,7.53395]
[1724156814185,0.55,2655.0,2654.6,3.76695]
[1724156814479,0.55,2655.0,2654.6,7.5339]
[1724156815355,1.231012,2655.0,2654.6,3.76695]
[1724156816384,1.231012,2655.0,2654.4,3.76722]
[1724156816599,2.4173,2654.9,2654.4,3.76731]
[1724156816776,0.55,2654.8,2654.4,3.76731]
[1724156817279,4.31677,2654.8,2654.2,11.0775]
[1724156817491,8.08366,2654.8,2654.2,11.0775]
[1724156817684,1.050096,2654.7,2654.2,11.0775]
[1724156818004,0.55,2654.6,2654.2,11.0775]
[1724156818497,0.55,2654.7,2654.2,11.0775]
[1724156818695,0.55,2654.7,2654.3,3.76742]
[1724156819511,0.55,2654.8,2654.4,3.76729]
[1724156820320,0.55,2654.8,2654.4,7.53458]
[1724156820505,0.55,2654.8,2654.4,3.76729]
[1724156823006,4.31676,2654.8,2654.2,3.76748]
[1724156823196,4.31676,2654.8,2654.2,7.53502]
[1724156823392,5.4286716,2654.8,2654.2,7.53501]
[1724156824015,5.4286716,2654.8,2654.3,3.76746]
[1724156826183,5.4286716,2654.8,2654.2,3.76748]
[1724156826386,2.2624,2654.6,2654.0,3.76779]
[1724156826585,3.76731,2654.5,2654.0,3.76779]
[1724156826820,0.55,2654.4,2654.0,3.76779]
[1724156827024,4.31733,2654.4,2654.0,3.76779]
[1724156827809,0.55,2654.4,2654.0,7.5356]
[1724156828005,0.55,2654.5,2654.1,3.76774]
[1724156829323,0.55,2654.5,2654.2,3.7676]
[1724156830423,0.55,2654.5,2654.2,7.53514]
[1724156830608,2.3669,2654.8,2654.2,4.521054]
[1724156830816,2.3669,2655.4,2654.4,2.487]
[1724156831015,2.3669,2655.4,2654.7,3.76681]
[1724156831338,2.3669,2655.4,2654.5,0.07532843]
[1724156831339,2.3669,2655.4,2654.9,3.76648]
[1724156831695,6.13289,2655.4,2654.7,7.5336]
[1724156831895,7.122762,2655.4,2654.8,3.76672]
[1724156832153,7.122762,2655.4,2654.7,3.76679]
[1724156832356,7.122762,2655.4,2654.6,3.767]
[1724156832357,3.76632,2655.2,2654.6,3.767]
[1724156834840,3.76464,2656.3,2655.7,3.7654]
[1724156835052,6.20909,2656.5,2655.5,3.6846]
[1724156835053,3.76492,2656.1,2655.5,3.6846]
[1724156835282,4.141412,2656.1,2655.5,3.6846]
[1724156836365,0.55,2656.0,2655.5,3.6497]
[1724156838779,2.9271,2656.0,2655.5,3.6497]
[1724156839161,3.76528,2655.9,2655.2,3.7661]
[1724156839512,0.55,2655.8,2655.2,3.7661]
[1724156839977,0.55,2655.8,2655.3,3.76603]
[1724156840878,0.55,2655.8,2655.4,3.7659]
[1724156841601,0.55,2655.8,2655.4,3.76583]
[1724156841897,0.55,2655.8,2655.4,3.76582]
[1724156842100,0.55,2655.8,2655.4,7.53165]
[1724156842411,0.55,2655.8,2655.5,3.76571]
[1724156842895,0.55,2656.0,2655.5,3.76571]
[1724156843060,18.40153663,2660.9,2656.1,3.76489]
[1724156843061,2.4996,2656.6,2656.1,3.76489]
[1724156843263,3.76444,2656.5,2655.9,3.76507]
[1724156843485,3.76474,2656.3,2655.7,3.76539]
[1724156843794,0.376474,2656.2,2655.7,3.76539]
[1724156844105,3.76515,2656.0,2655.5,7.31]
[1724156844273,3.76515,2656.0,2655.3,7.53193]
[1724156844479,2.4996,2656.1,2655.4,3.76577]
[1724156844773,2.4996,2656.1,2655.3,3.76596]
[1724156844973,0.55,2656.0,2655.3,3.76596]
[1724156845175,0.30496,2655.9,2655.3,3.76596]
[1724156845483,0.55,2655.8,2655.3,3.76596]
[1724156846399,0.55,2655.8,2655.3,7.53193]
[1724156846627,0.55,2655.8,2655.4,3.76588]
[1724156849022,0.55,2655.8,2655.2,7.53227]
[1724156849228,5.153912,2655.8,2655.2,3.76609]
[1724156849729,5.153912,2655.8,2655.2,7.53219]
[1724156850239,3.7657,2655.6,2655.1,7.31]
[1724156850424,1.16782,2655.5,2655.1,7.31]
[1724156850825,1.16782,2655.5,2654.8,18.56908]
[1724156850826,1.16782,2655.5,2654.8,6.22909]
[1724156851331,1.16782,2655.5,2654.9,3.76654]
[1724156851895,4.93366,2655.5,2654.9,3.76654]
[1724156852094,4.93366,2655.5,2654.7,7.31]
[1724156852095,2.2684,2655.2,2654.7,7.31]
[1724156852320,0.55,2655.1,2654.7,7.31]
[1724156852999,0.55,2655.1,2654.7,11.07682]
[1724156853223,1.208462,2655.1,2654.7,7.31]
[1724156853443,1.208462,2655.1,2654.7,11.07689]
[1724156853952,1.208462,2655.1,2654.8,3.76675]
[1724156854204,0.55,2655.1,2654.8,3.76675]
[1724156854849,0.55,2655.1,2654.9,3.76649]
[1724156855197,0.55,2655.1,2655.0,3.76647]
[1724156855550,0.61782,2655.5,2655.0,6.22387]
[1724156855753,3.76567,2655.6,2655.0,7.53284]
[1724156856596,3.76567,2655.6,2655.0,3.76637]
[1724156856798,3.766,2655.4,2654.9,3.76657]
[1724156857004,0.55,2655.3,2654.8,3.76668]
[1724156857314,0.66534,2655.2,2654.8,3.76668]
[1724156857489,0.55,2655.1,2654.8,3.76668]
[1724156858760,2.3374,2655.4,2654.7,7.31]
[1724156858962,2.3374,2655.4,2655.0,3.76645]
[1724156859155,0.78374,2655.3,2655.0,3.76645]
[1724156860505,0.78374,2655.3,2654.9,3.76661]
[1724156861060,0.78374,2655.3,2654.9,6.10238]
[1724156861401,3.0202,2655.3,2654.9,3.76658]
[1724156861562,6.78625,2655.3,2654.9,3.76658]
[1724156862187,3.0202,2655.3,2654.9,3.76658]
[1724156862563,6.78627,2655.3,2654.9,3.76658]
[1724156863361,3.0202,2655.3,2654.9,3.76658]
[1724156863564,4.075415,2655.3,2654.9,3.76658]
[1724156865016,3.76548,2655.7,2655.2,3.76619]
[1724156865196,0.838542,2655.8,2655.2,3.76619]
[1724156865400,0.838542,2655.8,2655.4,3.76581]
[1724156865834,6.07534,2656.0,2655.5,3.7657]
[1724156867410,3.76522,2655.9,2655.4,3.76589]
[1724156867613,3.76522,2655.9,2655.4,3.76583]
[1724156867812,2.3102,2656.0,2655.0,13.33905]
[1724156867813,3.76561,2655.7,2655.3,3.76604]
[1724156868119,0.376561,2655.6,2655.3,3.76604]
[1724156868415,3.76557,2655.7,2655.2,3.7661]
[1724156869036,3.76557,2655.7,2655.3,3.76602]
[1724156869214,4.31535,2655.8,2655.3,3.76602]
[1724156870121,5.354435,2655.8,2655.3,3.76602]
[1724156870271,3.76549,2655.7,2655.1,3.76621]
[1724156870672,3.76599,2655.4,2655.0,7.31]
[1724156871287,3.76599,2655.4,2655.0,11.07646]
[1724156872220,3.76599,2655.4,2655.0,7.31]
[1724156872528,0.625239,2655.4,2655.0,7.31]
[1724156872708,4.391179,2655.4,2655.0,7.31]
[1724156872936,0.625239,2655.4,2655.0,11.07647]
[1724156873440,3.76588,2655.5,2655.1,3.76633]
[1724156873625,6.25203,2655.6,2655.1,3.76633]
[1724156873814,0.55,2655.5,2655.1,3.76633]
[1724156874019,3.76556,2655.7,2655.3,3.76603]
[1724156875521,3.76573,2655.6,2655.2,3.76618]
[1724156876320,4.4873195,2655.7,2655.2,3.76611]
[1724156876554,0.55,2655.6,2655.2,3.76611]
[1724156880631,0.55,2655.6,2655.2,6.05511]
[1724156882056,4.31565,2655.6,2655.0,11.07637]
[1724156882259,4.31565,2655.6,2655.1,3.76632]
[1724156882554,20.63061811,2661.2,2655.4,3.76589]
[1724156882555,3.76516,2656.0,2655.4,3.76589]
[1724156882714,3.76516,2656.0,2655.5,3.76568]
[1724156882914,0.55,2655.9,2655.5,3.76568]
[1724156883373,2.49,2656.6,2655.9,3.7652]
[1724156883662,2.49,2656.6,2655.6,2.2794]
[1724156883663,3.76456,2656.4,2655.6,9.5894]
[1724156883874,7.52974,2656.2,2655.7,3.76548]
[1724156884175,9.79761,2656.2,2655.7,3.76548]
[1724156884318,7.012511,2656.2,2655.7,3.76548]
[1724156886634,10.777361,2656.2,2655.7,3.76548]
[1724156887028,7.012511,2656.2,2655.6,7.31]
[1724156887232,3.76515,2656.0,2655.6,7.31]
[1724156887429,3.76515,2656.0,2655.5,3.76567]
[1724156887756,8.6630641,2656.0,2655.5,3.76567]
[1724156888056,8.6630641,2656.0,2655.3,16.10597]
[1724156888057,3.76527,2655.9,2655.3,16.10597]
[1724156888371,4.31542,2655.8,2655.3,7.53192]
[1724156888867,8.08084,2655.8,2655.3,3.76596]
[1724156889070,5.23678041,2655.8,2655.3,3.76596]
[1724156889239,1.47136041,2655.8,2655.4,3.76587]
[1724156889431,5.23677041,2655.8,2655.3,3.76596]
[1724156890223,2.3375,2655.7,2655.2,11.07618]
[1724156890418,0.75742704,2655.6,2655.2,14.8423]
[1724156890623,0.75742704,2655.6,2655.3,3.76604]
[1724156890822,2.3375,2655.7,2655.3,3.76604]
[1724156891023,9.00222041,2655.8,2655.3,3.76604]
[1724156891223,5.23677041,2655.8,2655.3,3.76604]
[1724156891705,5.23677041,2655.8,2655.4,3.76589]
[1724156891912,4.31541,2655.8,2655.4,3.76589]
[1724156892310,3.76514,2656.0,2655.5,3.7657]
[1724156893009,3.76514,2656.0,2655.4,3.76589]
[1724156893216,3.76523,2655.9,2655.4,3.76589]
[1724156893390,7.53029,2656.0,2655.4,3.76583]
[1724156893593,0.986779,2655.9,2655.4,3.76583]
[1724156893830,0.986779,2655.9,2655.4,7.53165]
[1724156894216,3.76514,2656.0,2655.5,3.76573]
[1724156894406,3.76514,2656.0,2655.5,6.10613]
[1724156895799,3.76514,2656.0,2655.5,2.3404]
[1724156896020,3.76523,2655.9,2655.4,3.76582]
[1724156896330,3.76484,2656.2,2655.5,2.2506]
[1724156896553,3.76484,2656.2,2655.7,3.76538]
[1724156897133,3.7645,2656.4,2655.8,3.76526]
[1724156897430,3.76481,2656.2,2655.6,7.53102]
[1724156897621,0.752953,2656.1,2655.6,3.7655]
[1724156897821,0.752953,2656.1,2655.7,3.7654]
[1724156898742,3.76512,2656.0,2655.5,2.2506]
[1724156898898,3.76526,2655.9,2655.4,3.76583]
[1724156899099,4.31506,2656.0,2655.5,3.76574]
[1724156899343,3.76488,2656.2,2655.7,3.76541]
[1724156899519,4.772218,2656.2,2655.7,6.08951]
[1724156901200,8.537098,2656.2,2655.7,6.08951]
[1724156903754,3.76507,2656.0,2655.4,6.22942]
[1724156903955,8.537128,2656.2,2655.6,3.76552]
[1724156904106,0.8537128,2656.1,2655.6,3.76552]
[1724156904456,3.76501,2656.1,2655.6,3.76552]
[1724156904607,3.76488,2656.2,2655.5,3.7657]
[1724156904608,3.76506,2656.0,2655.5,3.7657]
[1724156904806,6.07866,2656.0,2655.4,6.2295]
[1724156905011,3.76526,2655.9,2655.4,6.2295]
[1724156907311,3.76526,2655.9,2655.4,6.22943]
[1724156907510,3.76526,2655.9,2655.4,9.99526]
[1724156908311,3.76526,2655.9,2655.5,3.76576]
[1724156909120,2.369,2656.7,2655.6,2.3847]
[1724156909320,3.76472,2656.3,2655.8,3.76525]
[1724156909525,3.76458,2656.4,2655.8,3.76525]
[1724156909526,3.7648,2656.2,2655.8,3.76525]
[1724156910446,3.76465,2656.3,2655.8,3.76525]
[1724156910611,0.55,2656.2,2655.8,3.76525]
[1724156911151,4.31478,2656.2,2655.8,3.76525]
[1724156911724,4.31478,2656.2,2655.7,3.76548]
[1724156911911,0.675958,2656.1,2655.7,3.76548]
[1724156914853,4.440948,2656.1,2655.6,7.53109]
[1724156915821,4.440948,2656.1,2655.6,7.53108]
[1724156916029,0.8755728,2656.0,2655.6,7.53108]
[1724156916422,0.8755728,2656.0,2655.7,3.76546]
[1724156916691,4.31478,2656.2,2655.7,3.76546]
[1724156916951,6.06976,2656.5,2656.1,3.76491]
[1724156917318,3.76393,2656.8,2656.3,3.76456]
[1724156918126,7.52709,2657.1,2656.6,3.76414]
[1724156918315,3.76351,2657.1,2656.4,2.47368222]
[1724156919352,7.52665,2657.3,2656.7,3.76406]
[1724156919657,7.52665,2657.3,2656.7,7.52805]
[1724156919818,7.52665,2657.3,2656.7,3.76399]
[1724156919819,3.76336,2657.2,2656.7,3.76399]
[1724156920254,3.76336,2657.2,2656.7,7.52798]
[1724156920553,3.76336,2657.2,2656.7,3.76399]
[1724156920964,3.76332,2657.3,2656.7,7.52795]
[1724156921257,0.55,2657.2,2656.8,3.76391]
[1724156921662,3.76301,2657.5,2656.9,6.07087]
[1724156921859,3.76301,2657.5,2657.0,3.76363]
[1724156923122,3.76309,2657.4,2657.0,3.76363]
[1724156923318,3.76309,2657.4,2656.9,6.07098]
[1724156924251,3.76289,2657.6,2657.1,3.76346]
[1724156924252,3.76287,2657.6,2657.1,3.76346]
[1724156924561,3.76287,2657.6,2657.1,3.76347]
[1724156925751,7.52574,2657.6,2657.1,3.76347]
[1724156925951,3.76287,2657.6,2657.1,3.76347]
[1724156926824,6.2358,2658.2,2657.5,3.76291]
[1724156927029,6.2358,2658.2,2657.6,3.76278]
[1724156927030,3.76208,2658.2,2657.6,3.76278]
[1724156927330,3.76208,2658.1,2657.5,3.76285]
[1724156927658,3.76208,2658.1,2657.4,2.3154]
[1724156927863,3.76246,2657.9,2657.4,2.3154]
[1724156928030,3.76275,2657.7,2657.2,2.3289]
[1724156928231,3.76275,2657.7,2657.2,6.09224]
[1724156928459,3.76275,2657.7,2657.2,7.1761466]
[1724156928930,3.76275,2657.7,2657.2,3.4128066]
[1724156929154,3.76275,2657.7,2657.2,2.3289]
[1724156929155,3.76294,2657.5,2657.2,2.3289]
[1724156929368,7.52596,2657.5,2657.0,3.76363]
[1724156929545,3.76294,2657.5,2657.0,3.76363]
[1724156929757,3.76294,2657.5,2657.0,3.76356]
[1724156930083,3.76294,2657.5,2657.1,0.609246]
[1724156931578,3.76294,2657.5,2657.1,4.372736]
[1724156932485,7.52552,2657.7,2657.1,4.372736]
[1724156932781,3.76274,2657.7,2657.2,3.76335]
[1724156932943,7.52548,2657.7,2657.2,4.5769656]
[1724156933141,3.76274,2657.7,2657.2,4.5769656]
[1724156933781,3.76288,2657.6,2657.2,0.8136156]
[1724156933956,2.4612,2658.2,2657.3,2.4035]
[1724156934161,3.76258,2657.8,2657.3,6.16664]
[1724156936082,3.76233,2658.0,2657.5,3.76289]
[1724156936597,7.52465,2658.0,2657.5,3.76289]
[1724156937325,3.76232,2658.0,2657.5,4.379529]
[1724156938200,3.76232,2658.0,2657.5,0.616639]
[1724156938517,3.76231,2658.0,2657.5,4.379559]
[1724156939696,3.76281,2657.6,2657.3,2.4035]
[1724156940097,2.4612,2658.2,2657.3,2.4035]
[1724156940301,3.76244,2657.9,2657.4,3.76304]
[1724156941633,3.76205,2658.2,2657.7,3.76262]
[1724156941795,3.76205,2658.2,2657.8,0.376262]
[1724156941996,3.76249,2657.9,2657.4,6.04267]
[1724156942228,3.76258,2657.8,2657.4,2.2796]
[1724156942429,3.76269,2657.7,2657.4,2.2796]
[1724156943613,3.76269,2657.7,2657.2,6.26005]
[1724156943814,3.76269,2657.7,2657.3,1.357005]
[1724156944798,3.76269,2657.7,2657.2,6.25998]
[1724156944799,3.76281,2657.6,2657.2,2.4967]
[1724156945040,3.76348,2657.2,2656.7,7.31]
[1724156945205,3.76348,2657.2,2656.7,13.36656]
[1724156945401,3.7635,2657.1,2656.8,1.71942891]
[1724156945808,3.7635,2657.1,2656.7,2.2925]
[1724156947310,3.76371,2657.0,2656.6,0.0636291]
[1724156948168,3.76389,2656.9,2656.6,0.0636291]
[1724156948381,3.7639,2656.9,2656.6,0.0636291]
[1724156950078,7.52744,2657.0,2656.6,0.0636291]
[1724156950386,3.76372,2657.0,2656.6,0.0636291]
[1724156950582,7.52745,2657.0,2656.6,0.0636291]
[1724156951381,3.7638,2656.9,2656.6,0.0636291]
[1724156952361,3.76372,2657.0,2656.6,0.0636291]
[1724156952362,3.76394,2656.8,2656.6,0.0636291]
[1724156954147,3.76379,2656.9,2656.6,0.0636291]
[1724156954482,3.76406,2656.7,2656.6,0.0636291]
[1724156955247,11.35412,2656.7,2656.6,0.0636291]
[1724156955448,11.90412,2656.7,2656.6,0.0636291]
[1724156955655,17.470328,2656.7,2656.6,0.0636291]
[1724156955854,13.706268,2656.7,2656.6,0.0636291]
[1724156956962,17.470328,2656.7,2656.6,0.0636291]
[1724156957178,19.965428,2656.7,2656.6,0.0636291]
[1724156960288,3.7652,2655.9,2655.7,9.6586]
[1724156960492,3.7652,2655.9,2655.7,2.3486]
[1724156960703,3.7652,2655.9,2655.4,2.2943]
[1724156961057,3.7652,2655.9,2655.4,6.06019]
[1724156962597,3.76506,2656.0,2655.4,6.06019]
[1724156962805,7.53024,2656.0,2655.4,7.773805]
[1724156962968,3.76506,2656.0,2655.5,3.76574]
[1724156964007,3.76487,2656.2,2655.7,2.4409]
[1724156964175,3.76487,2656.2,2655.7,6.2063]
[1724156964498,3.76487,2656.2,2655.8,3.76531]
[1724156964654,3.76457,2656.4,2655.8,3.76531]
[1724156964856,3.76457,2656.4,2655.8,4.762469]
[1724156964857,3.7647,2656.3,2655.8,4.762469]
[1724156965795,3.76479,2656.2,2655.8,0.997159]
[1724156967359,3.76479,2656.2,2655.8,4.762469]
[1724156967560,7.52916,2656.4,2655.8,4.762469]
[1724156967793,3.76457,2656.4,2655.8,4.762469]
[1724156968255,3.76464,2656.3,2655.8,4.762469]
[1724156968454,3.76457,2656.4,2655.9,4.8620649]
[1724156968679,6.76425,2656.6,2656.0,2.4494]
[1724156969102,3.76469,2656.3,2656.0,2.4494]
[1724156969455,3.76459,2656.4,2656.0,2.4494]
[1724156969781,3.76471,2656.3,2656.0,2.4494]
[1724156970197,3.76478,2656.2,2656.0,2.4494]
[1724156970412,3.76478,2656.2,2655.8,6.05591]
[1724156970857,3.76478,2656.2,2655.8,7.769059]
[1724156971060,3.76464,2656.3,2655.9,3.76518]
[1724156971313,6.76431,2656.6,2655.9,3.76518]
[1724156971460,0.55,2656.5,2655.9,3.84047403]
[1724156971661,6.76431,2656.6,2656.1,2.3472]
[1724156971662,3.76431,2656.6,2656.1,2.3472]
[1724156971997,3.7641,2656.7,2656.2,3.76468]
[1724156972196,3.76401,2656.8,2656.3,2.4658]
[1724156972798,3.76385,2656.9,2656.4,3.7644]
[1724156973000,3.76369,2657.0,2656.5,0.62302]
[1724156973576,3.76345,2657.2,2656.8,2.3521]
[1724156974103,3.76344,2657.2,2656.8,2.3521]
[1724156975117,6.826,2657.7,2656.8,2.3521]
[1724156975408,3.76372,2657.0,2656.8,2.3521]
[1724156975616,3.76378,2656.9,2656.4,2.3955]
[1724156976079,3.76336,2657.2,2656.7,3.76402]
[1724156976273,3.76336,2657.2,2656.8,2.4865]
[1724156977765,3.76352,2657.1,2656.8,2.4865]
[1724156980983,7.52709,2657.1,2656.8,2.4865]
[1724156981191,7.52712,2657.1,2656.8,2.4865]
[1724156981503,3.76378,2656.9,2656.4,6.10397]
[1724156981881,3.76378,2656.9,2656.4,2.3395]
[1724156982104,7.52765,2656.9,2656.4,6.1039]
[1724156982290,3.76378,2656.9,2656.4,6.1039]
[1724156982495,3.76378,2656.9,2656.4,7.090761]
[1724156983329,3.76413,2656.7,2656.4,3.326361]
[1724156983514,3.76413,2656.7,2656.4,2.3395]
[1724156983935,3.76431,2656.6,2656.4,2.3395]
[1724156984509,3.76435,2656.5,2656.1,2.68769493]
[1724156984809,3.7645,2656.4,2656.1,2.2716]
[1724156985243,3.76431,2656.6,2656.1,2.2716]
[1724156985396,3.76429,2656.6,2656.1,2.2716]
[1724156985595,3.76437,2656.5,2656.1,2.2716]
[1724156989033,3.76429,2656.6,2656.1,2.2716]
[1724156989340,3.76465,2656.3,2656.1,2.2716]
[1724156989554,3.76465,2656.3,2656.0,0.0636291]
[1724156991156,6.09151,2656.6,2656.0,0.0636291]
[1724156991526,3.7645,2656.4,2656.0,0.0636291]
[1724156992278,3.76471,2656.3,2656.0,0.0636291]
[1724156993373,3.7645,2656.4,2656.0,0.0636291]
[1724156993374,3.76479,2656.2,2656.0,0.0636291]
[1724156993589,3.76473,2656.3,2656.0,0.0636291]
[1724156994428,3.76479,2656.2,2656.0,0.0636291]
[1724156994827,7.52967,2656.2,2656.0,0.0636291]
[1724156995498,7.52965,2656.2,2656.0,0.0636291]
[1724156996102,3.76479,2656.2,2656.0,0.0636291]
[1724156997247,3.76472,2656.3,2656.0,0.0636291]
[1724156998554,3.76478,2656.2,2656.0,0.0636291]
[1724156999375,7.52963,2656.2,2656.0,0.0636291]
[1724156999557,3.76478,2656.2,2656.0,0.0636291]
[1724157000784,7.52982,2656.1,2656.0,0.0636291]
[1724157002935,8.282802,2656.1,2656.0,0.0636291]
[1724157004653,3.76491,2656.1,2656.0,0.0636291]
[1724157004974,3.76479,2656.2,2656.0,0.0636291]
[1724157005180,3.76475,2656.3,2656.0,0.0636291]
[1724157005387,3.76446,2656.5,2656.1,2.3871]
[1724157005710,3.76452,2656.4,2656.1,2.3871]
[1724157005920,7.5289,2656.5,2656.1,3.01620589]
[1724157006062,7.52887,2656.5,2656.1,3.01620589]
[1724157006269,7.5289,2656.5,2656.1,3.01620589]
[1724157006508,3.76449,2656.4,2656.1,3.01620589]
[1724157006666,3.76449,2656.4,2656.1,2.3871]
[1724157006868,3.76443,2656.5,2656.1,2.3871]
[1724157007398,7.52891,2656.5,2656.1,2.3871]
[1724157007579,3.76412,2656.7,2656.1,2.3871]
[1724157007917,3.76491,2656.1,2656.0,0.0636291]
[1724157014802,7.52982,2656.1,2656.0,0.0636291]
[1724157017386,3.76491,2656.1,2656.0,0.0636291]
[1724157017599,3.76474,2656.3,2656.0,0.0636291]
[1724157017921,3.76471,2656.3,2656.0,2.3774291]
[1724157019547,3.76471,2656.3,2656.0,0.0636291]
[1724157019690,3.76491,2656.1,2656.0,0.0636291]
[1724157020027,3.76486,2656.2,2656.0,0.0636291]
[1724157020822,3.76463,2656.3,2656.0,0.0636291]
[1724157022085,7.52937,2656.3,2656.0,0.0636291]
[1724157022691,3.76491,2656.1,2656.0,0.0636291]
[1724157025478,3.76465,2656.3,2656.0,0.0636291]
[1724157025612,3.7645,2656.4,2656.0,0.0636291]
[1724157029266,3.76465,2656.3,2656.0,0.0636291]
[1724157030244,3.76445,2656.5,2656.0,3.8286591]
[1724157030245,3.76443,2656.5,2656.0,3.8286591]
[1724157030549,3.76452,2656.4,2656.0,3.8286591]
[1724157031922,3.76464,2656.3,2656.0,0.0636291]
[1724157032161,4.141104,2656.3,2656.0,0.0636291]
[1724157032351,3.76464,2656.3,2656.0,0.0636291]
[1724157032559,1.594,2656.2,2656.0,0.0636291]
[1724157038136,3.76442,2656.5,2656.0,0.0636291]
[1724157038137,3.76442,2656.5,2656.1,2.4686]
[1724157038341,1.594,2656.3,2656.1,2.4686]
[1724157038763,1.594,2656.3,2656.0,3.8286791]
[1724157038930,3.76491,2656.2,2656.0,0.0636291]
[1724157039239,5.35891,2656.1,2656.0,0.0636291]
[1724157040254,1.594,2656.1,2656.0,0.0636291]
[1724157040851,3.76421,2656.6,2656.0,0.0636291]
[1724157041057,1.594,2656.3,2656.0,0.0636291]
[1724157042384,1.594,2656.3,2656.0,3.8286791]
[1724157044283,1.594,2656.3,2656.0,0.0636291]
[1724157044284,3.76479,2656.2,2656.0,0.0636291]
[1724157044489,5.35864,2656.3,2656.0,0.0636291]
[1724157047268,1.594,2656.3,2656.0,0.0636291]
[1724157047793,1.594,2656.3,2656.1,2.3698]